[Event "Early Titled Tuesday Blitz | February 8 2022"]
[White "Aditya Mittal"]
[Black "Lopez Del Alamo, Antonio"]
[WhiteFideId "35042025"]
[BlackFideId "2227339"]
[WhiteElo "2287"]
[BlackElo "2082"]
[Result "1-0"]
[Round "05"]
[TimeControl "180+1"]
[Date "2022.02.08"]
[WhiteClock "0:01:10"]
[BlackClock "0:00:18"]

1. d4 {[%clk 0:03:00]}  Nf6 {[%clk 0:02:44]} 2. c4 {[%clk 0:02:59]}  g6 {[%clk 0:02:43]} 3. Nc3 {[%clk 0:02:59]}  Bg7 {[%clk 0:02:44]} 4. e4 {[%clk 0:02:58]}  d6 {[%clk 0:02:44]} 5. Be2 {[%clk 0:02:59]}  O-O {[%clk 0:02:43]} 6. Be3 {[%clk 0:03:00]}  e5 {[%clk 0:02:42]} 7. d5 {[%clk 0:03:00]}  c6 {[%clk 0:02:43]} 8. h4 {[%clk 0:02:58]}  cxd5 {[%clk 0:02:42]} 9. cxd5 {[%clk 0:02:59]}  a6 {[%clk 0:02:37]} 10. h5 {[%clk 0:02:50]}  b5 {[%clk 0:02:36]} 11. a3 {[%clk 0:02:48]}  Nbd7 {[%clk 0:02:23]} 12. g4 {[%clk 0:02:44]}  Nc5 {[%clk 0:02:22]} 13. f3 {[%clk 0:02:42]}  Re8 {[%clk 0:02:08]} 14. Nh3 {[%clk 0:02:36]}  Bd7 {[%clk 0:01:58]} 15. Nf2 {[%clk 0:02:34]}  Rb8 {[%clk 0:01:54]} 16. b4 {[%clk 0:02:31]}  Na4 {[%clk 0:01:47]} 17. Nxa4 {[%clk 0:02:30]}  bxa4 {[%clk 0:01:46]} 18. Qd2 {[%clk 0:02:30]}  Bb5 {[%clk 0:01:45]} 19. Bh6 {[%clk 0:02:15]}  Bh8 {[%clk 0:01:42]} 20. Bd3 {[%clk 0:02:00]}  Nd7 {[%clk 0:01:41]} 21. Bg5 {[%clk 0:01:50]}  f6 {[%clk 0:01:31]} 22. Be3 {[%clk 0:01:44]}  g5 {[%clk 0:01:26]} 23. O-O {[%clk 0:01:44]}  Nb6 {[%clk 0:01:24]} 24. Rfc1 {[%clk 0:01:43]}  Bg7 {[%clk 0:01:11]} 25. Bxb5 {[%clk 0:01:43]}  axb5 {[%clk 0:01:10]} 26. Bxb6 {[%clk 0:01:43]}  Qxb6 {[%clk 0:01:10]} 27. Rc6 {[%clk 0:01:43]}  Qd8 {[%clk 0:00:55]} 28. Rac1 {[%clk 0:01:42]}  Bf8 {[%clk 0:00:53]} 29. Nh1 {[%clk 0:01:43]}  f5 {[%clk 0:00:45]} 30. gxf5 {[%clk 0:01:33]}  g4 {[%clk 0:00:43]} 31. fxg4 {[%clk 0:01:28]}  Qh4 {[%clk 0:00:42]} 32. Qf2 {[%clk 0:01:21]}  Qxg4+ {[%clk 0:00:39]} 33. Qg2 {[%clk 0:01:18]}  Qxg2+ {[%clk 0:00:38]} 34. Kxg2 {[%clk 0:01:19]}  Bh6 {[%clk 0:00:33]} 35. R1c2 {[%clk 0:01:15]}  Bf4 {[%clk 0:00:31]} 36. Rxd6 {[%clk 0:01:14]}  Rb7 {[%clk 0:00:28]} 37. Kf3 {[%clk 0:01:11]}  Rg7 {[%clk 0:00:26]} 38. Rg2 {[%clk 0:01:11]}  Rxg2 {[%clk 0:00:24]} 39. Kxg2 {[%clk 0:01:12]}  Rc8 {[%clk 0:00:24]} 40. Rc6 {[%clk 0:01:13]}  Rd8 {[%clk 0:00:21]} 41. Nf2 {[%clk 0:01:13]}  Rd7 {[%clk 0:00:21]} 42. Nd3 {[%clk 0:01:14]}  Rg7+ {[%clk 0:00:20]} 43. Kf2 {[%clk 0:01:11]}  Rg3 {[%clk 0:00:19]} 44. Nxf4 {[%clk 0:01:10]}  exf4 {[%clk 0:00:20]} 45. e5 {[%clk 0:01:10]}  Rxa3 {[%clk 0:00:19]} 46. f6 {[%clk 0:01:09]}  Kf8 {[%clk 0:00:18]} 47. e6 {[%clk 0:01:10]} 1-0


[Site "https://www.chess.com"]

[Event "Early Titled Tuesday Blitz | February 8 2022"]
[White "Aggelis, Nikolaos"]
[Black "Madaminov, Mukhiddin"]
[WhiteFideId "4213220"]
[BlackFideId "14210703"]
[WhiteElo "2154"]
[BlackElo "1916"]
[Result "1/2-1/2"]
[Round "05"]
[TimeControl "180+1"]
[Date "2022.02.08"]
[WhiteClock "0:00:12"]
[BlackClock "0:00:07"]

1. d4 {[%clk 0:02:58]}  Nf6 {[%clk 0:02:59]} 2. g3 {[%clk 0:02:53]}  d5 {[%clk 0:02:58]} 3. Nf3 {[%clk 0:02:48]}  c5 {[%clk 0:02:57]} 4. Bg2 {[%clk 0:02:47]}  cxd4 {[%clk 0:02:57]} 5. O-O {[%clk 0:02:46]}  g6 {[%clk 0:02:44]} 6. Nxd4 {[%clk 0:02:43]}  Bg7 {[%clk 0:02:45]} 7. Nc3 {[%clk 0:02:39]}  O-O {[%clk 0:02:43]} 8. Nb3 {[%clk 0:02:39]}  e6 {[%clk 0:02:37]} 9. e4 {[%clk 0:02:37]}  dxe4 {[%clk 0:02:36]} 10. Nxe4 {[%clk 0:02:35]}  Nxe4 {[%clk 0:02:35]} 11. Bxe4 {[%clk 0:02:36]}  Nc6 {[%clk 0:02:35]} 12. c3 {[%clk 0:02:35]}  e5 {[%clk 0:02:29]} 13. Bxc6 {[%clk 0:02:31]}  bxc6 {[%clk 0:02:28]} 14. Qxd8 {[%clk 0:02:32]}  Rxd8 {[%clk 0:02:28]} 15. Be3 {[%clk 0:02:32]}  a5 {[%clk 0:02:19]} 16. Rfd1 {[%clk 0:02:27]}  Rxd1+ {[%clk 0:01:59]} 17. Rxd1 {[%clk 0:02:26]}  Be6 {[%clk 0:02:00]} 18. Nxa5 {[%clk 0:02:14]}  Bd5 {[%clk 0:01:44]} 19. b4 {[%clk 0:02:05]}  e4 {[%clk 0:01:42]} 20. Bd4 {[%clk 0:02:04]}  Bf8 {[%clk 0:01:35]} 21. a3 {[%clk 0:01:55]}  f5 {[%clk 0:01:28]} 22. h4 {[%clk 0:01:49]}  Kf7 {[%clk 0:01:26]} 23. c4 {[%clk 0:01:40]}  Be6 {[%clk 0:01:26]} 24. Bb6 {[%clk 0:01:40]}  c5 {[%clk 0:01:21]} 25. bxc5 {[%clk 0:01:35]}  Bxc5 {[%clk 0:01:19]} 26. Bxc5 {[%clk 0:01:35]}  Rxa5 {[%clk 0:01:18]} 27. Bb4 {[%clk 0:01:36]}  Ra6 {[%clk 0:01:17]} 28. c5 {[%clk 0:01:34]}  h6 {[%clk 0:01:16]} 29. Rd6 {[%clk 0:01:33]}  Ra8 {[%clk 0:01:04]} 30. c6 {[%clk 0:01:28]}  Rc8 {[%clk 0:01:04]} 31. a4 {[%clk 0:01:28]}  g5 {[%clk 0:01:00]} 32. a5 {[%clk 0:01:26]}  gxh4 {[%clk 0:00:54]} 33. a6 {[%clk 0:01:20]}  hxg3 {[%clk 0:00:49]} 34. a7 {[%clk 0:01:20]}  gxf2+ {[%clk 0:00:43]} 35. Kxf2 {[%clk 0:01:20]}  f4 {[%clk 0:00:40]} 36. c7 {[%clk 0:01:16]}  Ra8 {[%clk 0:00:38]} 37. Bc5 {[%clk 0:01:11]}  Kf6 {[%clk 0:00:32]} 38. Rd8 {[%clk 0:01:10]}  Bc8 {[%clk 0:00:31]} 39. Rd6+ {[%clk 0:00:51]}  Ke5 {[%clk 0:00:30]} 40. Rxh6 {[%clk 0:00:51]}  e3+ {[%clk 0:00:27]} 41. Ke1 {[%clk 0:00:42]}  Kd5 {[%clk 0:00:26]} 42. Bb6 {[%clk 0:00:40]}  Ke4 {[%clk 0:00:24]} 43. Rh8 {[%clk 0:00:38]}  Kf3 {[%clk 0:00:20]} 44. Rf8 {[%clk 0:00:35]}  Ke4 {[%clk 0:00:19]} 45. Bc5 {[%clk 0:00:31]}  Kd5 {[%clk 0:00:19]} 46. Bb6 {[%clk 0:00:29]}  Kc6 {[%clk 0:00:20]} 47. Rf6+ {[%clk 0:00:28]}  Kb5 {[%clk 0:00:19]} 48. Bd4 {[%clk 0:00:25]}  Kc4 {[%clk 0:00:18]} 49. Rxf4 {[%clk 0:00:25]}  Kd3 {[%clk 0:00:15]} 50. Bb6 {[%clk 0:00:22]}  Bb7 {[%clk 0:00:14]} 51. Rd4+ {[%clk 0:00:21]}  Kc3 {[%clk 0:00:14]} 52. Rd8 {[%clk 0:00:21]}  Bc8 {[%clk 0:00:12]} 53. Bxe3 {[%clk 0:00:21]}  Kc4 {[%clk 0:00:12]} 54. Rd6 {[%clk 0:00:19]}  Kb5 {[%clk 0:00:12]} 55. Kd2 {[%clk 0:00:16]}  Kc4 {[%clk 0:00:10]} 56. Rd8 {[%clk 0:00:15]}  Kb5 {[%clk 0:00:10]} 57. Kc3 {[%clk 0:00:16]}  Kc6 {[%clk 0:00:10]} 58. Rh8 {[%clk 0:00:07]}  Kxc7 {[%clk 0:00:10]} 59. Kb4 {[%clk 0:00:07]}  Bb7 {[%clk 0:00:07]} 60. Rb8 {[%clk 0:00:05]}  Kc6 {[%clk 0:00:06]} 61. Ka5 {[%clk 0:00:04]}  Kc7 {[%clk 0:00:06]} 62. Bb6+ {[%clk 0:00:05]}  Kc6 {[%clk 0:00:05]} 63. Bd4 {[%clk 0:00:04]}  Kc7 {[%clk 0:00:05]} 64. Kb5 {[%clk 0:00:04]}  Bh1 {[%clk 0:00:04]} 65. Bb6+ {[%clk 0:00:04]}  Kd7 {[%clk 0:00:04]} 66. Kc5 {[%clk 0:00:04]}  Bg2 {[%clk 0:00:03]} 67. Kd4 {[%clk 0:00:04]}  Bh1 {[%clk 0:00:04]} 68. Ke5 {[%clk 0:00:05]}  Bg2 {[%clk 0:00:04]} 69. Bd4 {[%clk 0:00:05]}  Bf3 {[%clk 0:00:04]} 70. Be3 {[%clk 0:00:05]}  Bc6 {[%clk 0:00:04]} 71. Kd4 {[%clk 0:00:06]}  Bh1 {[%clk 0:00:05]} 72. Kc4 {[%clk 0:00:05]}  Bg2 {[%clk 0:00:05]} 73. Kb4 {[%clk 0:00:06]}  Bc6 {[%clk 0:00:05]} 74. Bd4 {[%clk 0:00:06]}  Kc7 {[%clk 0:00:06]} 75. Be5+ {[%clk 0:00:06]}  Kd7 {[%clk 0:00:07]} 76. Bd4 {[%clk 0:00:06]}  Kc7 {[%clk 0:00:07]} 77. Ka5 {[%clk 0:00:06]}  Bh1 {[%clk 0:00:05]} 78. Be5+ {[%clk 0:00:06]}  Kd7 {[%clk 0:00:03]} 79. Kb6 {[%clk 0:00:07]}  Bg2 {[%clk 0:00:03]} 80. Bc7 {[%clk 0:00:07]}  Bf3 {[%clk 0:00:03]} 81. Be5 {[%clk 0:00:07]}  Be4 {[%clk 0:00:03]} 82. Bd4 {[%clk 0:00:07]}  Bd5 {[%clk 0:00:03]} 83. Be3 {[%clk 0:00:07]}  Be4 {[%clk 0:00:03]} 84. Bd4 {[%clk 0:00:08]}  Bf3 {[%clk 0:00:04]} 85. Rh8 {[%clk 0:00:08]}  Rxh8 {[%clk 0:00:02]} 86. Bxh8 {[%clk 0:00:09]}  Ba8 {[%clk 0:00:03]} 87. Be5 {[%clk 0:00:09]}  Kc8 {[%clk 0:00:04]} 88. Bd6 {[%clk 0:00:09]}  Bh1 {[%clk 0:00:05]} 89. Bc5 {[%clk 0:00:09]}  Ba8 {[%clk 0:00:05]} 90. Bb4 {[%clk 0:00:10]}  Bh1 {[%clk 0:00:06]} 91. Bc3 {[%clk 0:00:11]}  Ba8 {[%clk 0:00:07]} 92. Be5 {[%clk 0:00:12]}  Bh1 {[%clk 0:00:07]} 1/2-1/2


[Site "https://www.chess.com"]

[Event "Early Titled Tuesday Blitz | February 8 2022"]
[White "Alavkin, Arseny"]
[Black "Rodchenkov, Sergey D."]
[WhiteFideId "4120612"]
[BlackFideId "4168712"]
[WhiteElo "2391"]
[BlackElo "2306"]
[Result "1-0"]
[Round "05"]
[TimeControl "180+1"]
[Date "2022.02.08"]
[WhiteClock "0:01:00"]
[BlackClock "0:00:35"]

1. c4 {[%clk 0:02:57]}  e5 {[%clk 0:02:59]} 2. Nc3 {[%clk 0:02:56]}  Nf6 {[%clk 0:02:59]} 3. Nf3 {[%clk 0:02:56]}  Nc6 {[%clk 0:02:59]} 4. e4 {[%clk 0:02:57]}  Bc5 {[%clk 0:02:56]} 5. Nxe5 {[%clk 0:02:57]}  Nxe5 {[%clk 0:02:53]} 6. d4 {[%clk 0:02:57]}  Bxd4 {[%clk 0:02:53]} 7. Qxd4 {[%clk 0:02:58]}  d6 {[%clk 0:02:54]} 8. Be2 {[%clk 0:02:57]}  O-O {[%clk 0:02:51]} 9. O-O {[%clk 0:02:57]}  Be6 {[%clk 0:02:48]} 10. b3 {[%clk 0:02:55]}  Qe7 {[%clk 0:02:33]} 11. f3 {[%clk 0:02:54]}  a5 {[%clk 0:02:28]} 12. Bb2 {[%clk 0:02:53]}  Nfd7 {[%clk 0:02:24]} 13. Rad1 {[%clk 0:02:52]}  Nc5 {[%clk 0:02:21]} 14. Rfe1 {[%clk 0:02:52]}  Nc6 {[%clk 0:02:15]} 15. Qe3 {[%clk 0:02:41]}  f6 {[%clk 0:02:10]} 16. Bf1 {[%clk 0:02:38]}  Bf7 {[%clk 0:02:09]} 17. Qf2 {[%clk 0:02:30]}  Nb4 {[%clk 0:02:06]} 18. a3 {[%clk 0:02:29]}  Nc6 {[%clk 0:01:58]} 19. Nd5 {[%clk 0:02:28]}  Qd8 {[%clk 0:01:58]} 20. Qh4 {[%clk 0:02:12]}  Bxd5 {[%clk 0:01:52]} 21. exd5 {[%clk 0:02:09]}  Ne5 {[%clk 0:01:50]} 22. f4 {[%clk 0:02:09]}  Ng6 {[%clk 0:01:45]} 23. Qg3 {[%clk 0:02:09]}  Qd7 {[%clk 0:01:39]} 24. b4 {[%clk 0:02:03]}  axb4 {[%clk 0:01:24]} 25. axb4 {[%clk 0:02:04]}  Ra2 {[%clk 0:01:24]} 26. Bc3 {[%clk 0:01:58]}  Na4 {[%clk 0:01:18]} 27. Bd4 {[%clk 0:01:56]}  Qf5 {[%clk 0:00:58]} 28. Be3 {[%clk 0:01:41]}  Nc3 {[%clk 0:00:51]} 29. Bd3 {[%clk 0:01:39]}  Qxd3 {[%clk 0:00:39]} 30. Rxd3 {[%clk 0:01:12]}  Ne2+ {[%clk 0:00:36]} 31. Rxe2 {[%clk 0:01:12]}  Rxe2 {[%clk 0:00:37]} 32. Rd2 {[%clk 0:01:10]}  Rxd2 {[%clk 0:00:36]} 33. Bxd2 {[%clk 0:01:10]}  Ne7 {[%clk 0:00:36]} 34. Qg4 {[%clk 0:01:01]}  Re8 {[%clk 0:00:35]} 35. Qd7 {[%clk 0:01:00]}  Kf8 {[%clk 0:00:35]} 1-0


[Site "https://www.chess.com"]

[Event "Early Titled Tuesday Blitz | February 8 2022"]
[White "Aloma Vidal, Robert"]
[Black "Dylag, Emilia"]
[WhiteFideId "2260409"]
[BlackFideId "21805172"]
[WhiteElo "2435"]
[BlackElo "1932"]
[Result "1-0"]
[Round "05"]
[TimeControl "180+1"]
[Date "2022.02.08"]
[WhiteClock "0:01:07"]
[BlackClock "0:00:04"]

1. e4 {[%clk 0:02:05]}  e5 {[%clk 0:02:58]} 2. Nf3 {[%clk 0:02:04]}  Nc6 {[%clk 0:02:57]} 3. Bc4 {[%clk 0:02:02]}  Bc5 {[%clk 0:02:53]} 4. b4 {[%clk 0:01:59]}  Bxb4 {[%clk 0:02:52]} 5. c3 {[%clk 0:01:59]}  Ba5 {[%clk 0:02:52]} 6. d4 {[%clk 0:01:59]}  d6 {[%clk 0:02:47]} 7. Qb3 {[%clk 0:01:57]}  Qd7 {[%clk 0:02:47]} 8. O-O {[%clk 0:01:55]}  Bb6 {[%clk 0:02:47]} 9. Nbd2 {[%clk 0:01:55]}  Na5 {[%clk 0:02:43]} 10. Qc2 {[%clk 0:01:55]}  exd4 {[%clk 0:02:38]} 11. cxd4 {[%clk 0:01:54]}  Nxc4 {[%clk 0:02:37]} 12. Nxc4 {[%clk 0:01:54]}  Ne7 {[%clk 0:02:32]} 13. a4 {[%clk 0:01:54]}  a6 {[%clk 0:02:29]} 14. Nxb6 {[%clk 0:01:52]}  cxb6 {[%clk 0:02:30]} 15. d5 {[%clk 0:01:52]}  O-O {[%clk 0:02:26]} 16. Bb2 {[%clk 0:01:51]}  Ng6 {[%clk 0:02:24]} 17. h3 {[%clk 0:01:47]}  Re8 {[%clk 0:02:23]} 18. Rfe1 {[%clk 0:01:41]}  b5 {[%clk 0:02:19]} 19. a5 {[%clk 0:01:35]}  b6 {[%clk 0:02:19]} 20. axb6 {[%clk 0:01:34]}  Bb7 {[%clk 0:02:17]} 21. Qc3 {[%clk 0:01:31]}  f6 {[%clk 0:02:16]} 22. Nd4 {[%clk 0:01:32]}  Rac8 {[%clk 0:02:10]} 23. Qg3 {[%clk 0:01:31]}  Ne5 {[%clk 0:01:51]} 24. Nf5 {[%clk 0:01:27]}  Rc2 {[%clk 0:01:37]} 25. Bxe5 {[%clk 0:01:23]}  Rxe5 {[%clk 0:01:24]} 26. Rac1 {[%clk 0:01:23]}  Rc4 {[%clk 0:00:51]} 27. f3 {[%clk 0:01:15]}  g6 {[%clk 0:00:42]} 28. Ne3 {[%clk 0:01:13]}  Rc5 {[%clk 0:00:33]} 29. Qh4 {[%clk 0:01:12]}  Qd8 {[%clk 0:00:30]} 30. Kh2 {[%clk 0:01:09]}  Rh5 {[%clk 0:00:30]} 31. Qf4 {[%clk 0:01:08]}  Rxc1 {[%clk 0:00:19]} 32. Rxc1 {[%clk 0:01:08]}  Qxb6 {[%clk 0:00:20]} 33. Ng4 {[%clk 0:01:07]}  Re5 {[%clk 0:00:08]} 34. Qxf6 {[%clk 0:01:06]}  b4 {[%clk 0:00:04]} 35. Nh6# {[%clk 0:01:07]} 1-0


[Site "https://www.chess.com"]

[Event "Early Titled Tuesday Blitz | February 8 2022"]
[White "Araujo Filho, Luiz Antonio Coel"]
[Black "Bifulco, Michel"]
[WhiteFideId "2130661"]
[BlackFideId "828580"]
[WhiteElo "2218"]
[BlackElo "2165"]
[Result "1-0"]
[Round "05"]
[TimeControl "180+1"]
[Date "2022.02.08"]
[WhiteClock "0:00:02"]
[BlackClock "0:00:02"]

1. d4 {[%clk 0:02:54]}  Nf6 {[%clk 0:02:59]} 2. Nf3 {[%clk 0:02:53]}  g6 {[%clk 0:03:00]} 3. c4 {[%clk 0:02:53]}  Bg7 {[%clk 0:03:00]} 4. Nc3 {[%clk 0:02:53]}  O-O {[%clk 0:03:01]} 5. e4 {[%clk 0:02:52]}  d6 {[%clk 0:03:02]} 6. Be2 {[%clk 0:02:52]}  e5 {[%clk 0:03:02]} 7. dxe5 {[%clk 0:02:53]}  dxe5 {[%clk 0:03:02]} 8. O-O {[%clk 0:02:53]}  Qxd1 {[%clk 0:02:57]} 9. Rxd1 {[%clk 0:02:53]}  Nbd7 {[%clk 0:02:56]} 10. h3 {[%clk 0:02:48]}  c6 {[%clk 0:02:56]} 11. Be3 {[%clk 0:02:48]}  Re8 {[%clk 0:02:55]} 12. Rac1 {[%clk 0:02:45]}  Nf8 {[%clk 0:02:55]} 13. b4 {[%clk 0:02:45]}  Be6 {[%clk 0:02:39]} 14. a4 {[%clk 0:02:39]}  Rad8 {[%clk 0:02:39]} 15. b5 {[%clk 0:02:36]}  a6 {[%clk 0:02:28]} 16. Bb6 {[%clk 0:02:23]}  Rxd1+ {[%clk 0:02:25]} 17. Rxd1 {[%clk 0:02:23]}  N8d7 {[%clk 0:02:24]} 18. Bc7 {[%clk 0:01:24]}  axb5 {[%clk 0:02:22]} 19. axb5 {[%clk 0:01:24]}  Rc8 {[%clk 0:02:17]} 20. bxc6 {[%clk 0:01:17]}  Rxc7 {[%clk 0:02:11]} 21. cxd7 {[%clk 0:01:13]}  Nxd7 {[%clk 0:02:12]} 22. Nd5 {[%clk 0:01:10]}  Rc5 {[%clk 0:02:10]} 23. Ng5 {[%clk 0:01:01]}  Bxd5 {[%clk 0:02:06]} 24. cxd5 {[%clk 0:01:00]}  h6 {[%clk 0:01:55]} 25. Nf3 {[%clk 0:00:58]}  Rc2 {[%clk 0:01:52]} 26. Bb5 {[%clk 0:00:51]}  Nb6 {[%clk 0:01:40]} 27. d6 {[%clk 0:00:50]}  Rc8 {[%clk 0:01:35]} 28. d7 {[%clk 0:00:42]}  Rd8 {[%clk 0:01:35]} 29. Rd6 {[%clk 0:00:39]}  Na8 {[%clk 0:01:29]} 30. Kf1 {[%clk 0:00:30]}  Kf8 {[%clk 0:01:28]} 31. Nd2 {[%clk 0:00:27]}  Nc7 {[%clk 0:01:25]} 32. Bc4 {[%clk 0:00:23]}  Ke7 {[%clk 0:01:18]} 33. Rb6 {[%clk 0:00:21]}  Rxd7 {[%clk 0:01:15]} 34. Rxb7 {[%clk 0:00:20]}  f5 {[%clk 0:01:05]} 35. Ke2 {[%clk 0:00:16]}  Bf6 {[%clk 0:00:50]} 36. Nb3 {[%clk 0:00:11]}  Kd8 {[%clk 0:00:34]} 37. Rb8+ {[%clk 0:00:09]}  Ke7 {[%clk 0:00:35]} 38. Rg8 {[%clk 0:00:08]}  Ne8 {[%clk 0:00:19]} 39. Rxg6 {[%clk 0:00:06]}  Rc7 {[%clk 0:00:16]} 40. Bb5 {[%clk 0:00:04]}  Nd6 {[%clk 0:00:16]} 41. Bd3 {[%clk 0:00:04]}  fxe4 {[%clk 0:00:15]} 42. Bb1 {[%clk 0:00:04]}  Rb7 {[%clk 0:00:12]} 43. Nd2 {[%clk 0:00:03]}  Bg5 {[%clk 0:00:12]} 44. Bc2 {[%clk 0:00:03]}  Rb2 {[%clk 0:00:11]} 45. Kd1 {[%clk 0:00:02]}  Ra2 {[%clk 0:00:03]} 46. Nxe4 {[%clk 0:00:02]}  Ra1+ {[%clk 0:00:02]} 47. Ke2 {[%clk 0:00:02]} 1-0


[Site "https://www.chess.com"]

[Event "Early Titled Tuesday Blitz | February 8 2022"]
[White "Beerdsen, Thomas"]
[Black "Grischuk, Alexander"]
[WhiteFideId "1030108"]
[BlackFideId "4126025"]
[WhiteElo "2585"]
[BlackElo "2762"]
[Result "0-1"]
[Round "05"]
[TimeControl "180+1"]
[Date "2022.02.08"]
[WhiteClock "0:00:08"]
[BlackClock "0:00:04"]

1. e4 {[%clk 0:03:00]}  d5 {[%clk 0:02:58]} 2. exd5 {[%clk 0:03:00]}  Qxd5 {[%clk 0:02:58]} 3. Nc3 {[%clk 0:03:01]}  Qa5 {[%clk 0:02:59]} 4. b4 {[%clk 0:03:02]}  Qxb4 {[%clk 0:02:59]} 5. Rb1 {[%clk 0:03:02]}  Qd6 {[%clk 0:02:58]} 6. Nf3 {[%clk 0:03:03]}  Nf6 {[%clk 0:02:58]} 7. Bc4 {[%clk 0:03:02]}  Be6 {[%clk 0:02:23]} 8. Qe2 {[%clk 0:02:51]}  Bxc4 {[%clk 0:02:18]} 9. Qxc4 {[%clk 0:02:51]}  Qc6 {[%clk 0:01:43]} 10. Qb3 {[%clk 0:02:44]}  e6 {[%clk 0:01:39]} 11. Qxb7 {[%clk 0:02:34]}  Qxb7 {[%clk 0:01:32]} 12. Rxb7 {[%clk 0:02:34]}  Bd6 {[%clk 0:01:26]} 13. Nb5 {[%clk 0:02:23]}  Na6 {[%clk 0:01:10]} 14. Nxd6+ {[%clk 0:02:12]}  cxd6 {[%clk 0:01:10]} 15. Ba3 {[%clk 0:02:13]}  Ne4 {[%clk 0:01:05]} 16. Ke2 {[%clk 0:01:53]}  Nec5 {[%clk 0:00:49]} 17. Rb5 {[%clk 0:01:41]}  Kd7 {[%clk 0:00:37]} 18. Ra5 {[%clk 0:01:40]}  Kc7 {[%clk 0:00:13]} 19. Rb1 {[%clk 0:01:16]}  Rhb8 {[%clk 0:00:12]} 20. Rxb8 {[%clk 0:01:16]}  Rxb8 {[%clk 0:00:06]} 21. Bxc5 {[%clk 0:01:16]}  Nxc5 {[%clk 0:00:07]} 22. Rxa7+ {[%clk 0:01:17]}  Nb7 {[%clk 0:00:08]} 23. d4 {[%clk 0:01:15]}  Kb6 {[%clk 0:00:07]} 24. Ra3 {[%clk 0:01:15]}  Na5 {[%clk 0:00:07]} 25. Ng5 {[%clk 0:01:14]}  Rb7 {[%clk 0:00:04]} 26. Nxh7 {[%clk 0:01:14]}  f6 {[%clk 0:00:03]} 27. Nf8 {[%clk 0:01:13]}  e5 {[%clk 0:00:02]} 28. dxe5 {[%clk 0:01:10]}  dxe5 {[%clk 0:00:03]} 29. Rg3 {[%clk 0:01:07]}  Re7 {[%clk 0:00:03]} 30. Ng6 {[%clk 0:01:05]}  Rc7 {[%clk 0:00:03]} 31. Kd1 {[%clk 0:01:01]}  Nc4 {[%clk 0:00:03]} 32. Nf8 {[%clk 0:00:53]}  Rf7 {[%clk 0:00:02]} 33. Ne6 {[%clk 0:00:52]}  g5 {[%clk 0:00:03]} 34. Rb3+ {[%clk 0:00:52]}  Ka5 {[%clk 0:00:02]} 35. Nc5 {[%clk 0:00:50]}  Rc7 {[%clk 0:00:01]} 36. Nb7+ {[%clk 0:00:48]}  Ka6 {[%clk 0:00:01]} 37. Nd8 {[%clk 0:00:48]}  Rd7+ {[%clk 0:00:01]} 38. Ke2 {[%clk 0:00:34]}  Rd2+ {[%clk 0:00:01]} 39. Kf3 {[%clk 0:00:28]}  Rxd8 {[%clk 0:00:02]} 40. Kg4 {[%clk 0:00:29]}  Rd4+ {[%clk 0:00:01]} 41. Kf5 {[%clk 0:00:30]}  Rf4+ {[%clk 0:00:01]} 42. Ke6 {[%clk 0:00:31]}  Rxf2 {[%clk 0:00:02]} 43. Rc3 {[%clk 0:00:24]}  Nb6 {[%clk 0:00:02]} 44. g4 {[%clk 0:00:20]}  e4 {[%clk 0:00:03]} 45. Re3 {[%clk 0:00:19]}  Rf4 {[%clk 0:00:03]} 46. h3 {[%clk 0:00:20]}  Nc4 {[%clk 0:00:04]} 47. Re1 {[%clk 0:00:19]}  e3 {[%clk 0:00:04]} 48. Kd5 {[%clk 0:00:20]}  Kb5 {[%clk 0:00:04]} 49. Rb1+ {[%clk 0:00:20]}  Ka4 {[%clk 0:00:04]} 50. c3 {[%clk 0:00:20]}  Ka3 {[%clk 0:00:04]} 51. Ra1 {[%clk 0:00:16]}  Kb2 {[%clk 0:00:05]} 52. Rh1 {[%clk 0:00:14]}  Kxa2 {[%clk 0:00:05]} 53. h4 {[%clk 0:00:14]}  gxh4 {[%clk 0:00:05]} 54. Rxh4 {[%clk 0:00:15]}  e2 {[%clk 0:00:05]} 55. Rh2 {[%clk 0:00:16]}  Kb3 {[%clk 0:00:04]} 56. Rxe2 {[%clk 0:00:16]}  Kxc3 {[%clk 0:00:05]} 57. Ke6 {[%clk 0:00:15]}  Nd2 {[%clk 0:00:04]} 58. Re3+ {[%clk 0:00:12]}  Kd4 {[%clk 0:00:04]} 59. Ra3 {[%clk 0:00:10]}  Ne4 {[%clk 0:00:04]} 60. Ra4+ {[%clk 0:00:09]}  Ke3 {[%clk 0:00:05]} 61. Ra3+ {[%clk 0:00:10]}  Ke2 {[%clk 0:00:05]} 62. Ra4 {[%clk 0:00:08]}  Nc5+ {[%clk 0:00:04]} 0-1


[Site "https://www.chess.com"]

[Event "Early Titled Tuesday Blitz | February 8 2022"]
[White "Bilan, Danila"]
[Black "Prieto Aranguren, Alain"]
[WhiteFideId "24161918"]
[BlackFideId "2268906"]
[WhiteElo "2164"]
[BlackElo "2235"]
[Result "0-1"]
[Round "05"]
[TimeControl "180+1"]
[Date "2022.02.08"]
[WhiteClock "0:00:01"]
[BlackClock "0:01:20"]

1. d4 {[%clk 0:03:00]}  Nf6 {[%clk 0:02:58]} 2. Nf3 {[%clk 0:03:01]}  c5 {[%clk 0:02:55]} 3. e3 {[%clk 0:03:00]}  cxd4 {[%clk 0:02:55]} 4. exd4 {[%clk 0:03:01]}  d5 {[%clk 0:02:55]} 5. h3 {[%clk 0:03:02]}  Bf5 {[%clk 0:02:55]} 6. Bd3 {[%clk 0:02:58]}  Bxd3 {[%clk 0:02:54]} 7. Qxd3 {[%clk 0:02:59]}  Nc6 {[%clk 0:02:54]} 8. O-O {[%clk 0:02:55]}  e6 {[%clk 0:02:53]} 9. c3 {[%clk 0:02:56]}  Bd6 {[%clk 0:02:53]} 10. Bg5 {[%clk 0:02:56]}  Qc7 {[%clk 0:02:53]} 11. Nbd2 {[%clk 0:02:54]}  h6 {[%clk 0:02:51]} 12. Bxf6 {[%clk 0:02:47]}  gxf6 {[%clk 0:02:50]} 13. c4 {[%clk 0:02:45]}  Ne7 {[%clk 0:02:45]} 14. Rfe1 {[%clk 0:02:29]}  Qd7 {[%clk 0:02:41]} 15. c5 {[%clk 0:02:10]}  Bc7 {[%clk 0:02:41]} 16. b4 {[%clk 0:02:06]}  Ng6 {[%clk 0:02:40]} 17. Qf1 {[%clk 0:01:47]}  Rg8 {[%clk 0:02:39]} 18. Kh1 {[%clk 0:01:40]}  Nf4 {[%clk 0:02:29]} 19. g3 {[%clk 0:01:39]}  Nh5 {[%clk 0:02:28]} 20. Qg2 {[%clk 0:01:32]}  O-O-O {[%clk 0:02:19]} 21. Nf1 {[%clk 0:01:27]}  f5 {[%clk 0:02:15]} 22. Ne5 {[%clk 0:01:19]}  Qe7 {[%clk 0:02:09]} 23. Qf3 {[%clk 0:01:09]}  f6 {[%clk 0:01:59]} 24. Qxh5 {[%clk 0:01:01]}  fxe5 {[%clk 0:01:58]} 25. dxe5 {[%clk 0:01:01]}  Rg5 {[%clk 0:01:53]} 26. Qf3 {[%clk 0:00:53]}  Rdg8 {[%clk 0:01:48]} 27. Rac1 {[%clk 0:00:52]}  Qg7 {[%clk 0:01:40]} 28. b5 {[%clk 0:00:50]}  Bxe5 {[%clk 0:01:38]} 29. Qe3 {[%clk 0:00:35]}  f4 {[%clk 0:01:31]} 30. Qe2 {[%clk 0:00:19]}  fxg3 {[%clk 0:01:29]} 31. fxg3 {[%clk 0:00:14]}  Rxg3 {[%clk 0:01:20]} 32. Nxg3 {[%clk 0:00:11]}  Qxg3 {[%clk 0:01:20]} 33. Qxe5 {[%clk 0:00:01]}  Qg2# {[%clk 0:01:20]} 0-1


[Site "https://www.chess.com"]